bitfinex/quotes_BTCUSD_20241205
["timestamp","ask_amount","ask_price","bid_price","bid_amount"]
[1733414816470,0.29642905,101650.0,101640.0,0.009]
[1733414816696,0.42702905,101650.0,101640.0,0.009]
[1733414817167,0.23027605,101650.0,101640.0,0.009]
[1733414817385,0.23027605,101650.0,101630.0,0.01024526]
[1733414817609,0.00122989,101640.0,101630.0,0.01775233]
[1733414817823,0.10090594,101640.0,101610.0,0.35706019]
[1733414818033,0.10090594,101640.0,101610.0,0.52435819]
[1733414818220,0.10090594,101640.0,101610.0,0.35706019]
[1733414818456,0.29767994,101640.0,101610.0,0.35706019]
[1733414818671,0.29767994,101640.0,101620.0,0.167287]
[1733414818672,0.09967605,101640.0,101620.0,0.167287]
[1733414818907,0.10090595,101640.0,101630.0,0.009]
[1733414819122,0.10090595,101640.0,101610.0,0.35706019]
[1733414819338,0.10090595,101640.0,101620.0,0.167289]
[1733414820664,0.10090595,101640.0,101610.0,0.34784506]
[1733414820665,0.29647805,101630.0,101610.0,0.01926301]
[1733414820890,0.219811,101620.0,101610.0,0.01026301]
[1733414821120,0.196831,101610.0,101600.0,0.0008674]
[1733414821387,0.14717605,101610.0,101600.0,0.0008674]
[1733414821617,0.14840633,101610.0,101600.0,0.0008674]
[1733414822077,0.34523733,101610.0,101600.0,0.0008674]
[1733414822288,0.14717605,101610.0,101600.0,0.0008674]
[1733414822504,0.36700705,101610.0,101600.0,0.0008674]
[1733414823889,0.36700705,101610.0,101600.0,0.0098674]
[1733414825519,0.46700705,101610.0,101600.0,0.0098674]
[1733414825743,0.46700705,101610.0,101600.0,0.0008674]
[1733414825995,0.44930705,101610.0,101600.0,0.0008674]
[1733414826504,0.42630705,101610.0,101600.0,0.0008674]
[1733414827023,0.62315405,101610.0,101560.0,0.32271177]
[1733414827260,0.62315405,101610.0,101560.0,0.42238882]
[1733414827261,0.29776149,101600.0,101560.0,0.42238882]
[1733414827476,0.10090649,101600.0,101560.0,0.15533277]
[1733414827694,0.49340105,101600.0,101560.0,0.32271177]
[1733414827906,0.196869,101590.0,101560.0,0.49009077]
[1733414828117,0.49340105,101600.0,101560.0,0.49009177]
[1733414828334,0.523472,101610.0,101580.0,0.167354]
[1733414828551,0.19808237,101600.0,101570.0,0.334735]
[1733414828788,0.196852,101600.0,101570.0,0.167363]
[1733414829060,0.393712,101600.0,101570.0,0.167363]
[1733414829266,0.19687,101590.0,101560.0,0.27605505]
[1733414829488,0.19810037,101590.0,101560.0,0.26705505]
[1733414829696,0.29654605,101590.0,101550.0,0.35718148]
[1733414829925,0.49343005,101590.0,101560.0,0.167388]
[1733414830144,0.49342805,101590.0,101560.0,0.167388]
[1733414830614,0.196898,101580.0,101550.0,0.11327658]
[1733414830858,0.09967605,101590.0,101570.0,0.009]
[1733414831107,0.1206,101580.0,101570.0,0.009]
[1733414831544,0.31749,101580.0,101550.0,0.44806358]
[1733414831768,0.31749,101580.0,101550.0,0.61546058]
[1733414832042,0.0466,101600.0,101580.0,0.167344]
[1733414832256,0.276913,101620.0,101590.0,0.26700105]
[1733414832472,0.196871,101590.0,101560.0,0.167375]
[1733414832722,0.196898,101580.0,101550.0,0.18099353]
[1733414832955,0.196898,101580.0,101560.0,0.009]
[1733414833190,0.393798,101580.0,101560.0,0.009]
[1733414833842,0.62143705,101590.0,101560.0,0.176387]
[1733414834051,0.196889,101580.0,101560.0,0.167387]
[1733414834310,0.196889,101580.0,101550.0,0.28068158]
[1733414834546,0.62143705,101590.0,101550.0,0.44807558]
[1733414834795,0.81832305,101590.0,101550.0,0.44807558]
[1733414835005,0.81832105,101590.0,101560.0,0.176388]
[1733414835221,0.196891,101580.0,101550.0,0.61545858]
[1733414835466,0.81831905,101590.0,101560.0,0.167387]
[1733414835689,0.196889,101580.0,101560.0,0.167387]
[1733414835904,0.196889,101580.0,101550.0,0.61546058]
[1733414836116,0.196889,101580.0,101550.0,0.44806458]
[1733414836350,0.39379,101580.0,101550.0,0.44806458]
[1733414836562,0.39379,101580.0,101550.0,0.28067058]
[1733414836841,0.196889,101580.0,101550.0,0.44806458]
[1733414837046,0.196889,101580.0,101550.0,0.61545758]
[1733414837265,0.393795,101580.0,101550.0,0.61545958]
[1733414837514,0.393839,101570.0,101550.0,0.12314388]
[1733414837736,0.324527,101560.0,101550.0,0.01155453]
[1733414837955,0.52420305,101560.0,101550.0,0.0008673]
[1733414838243,0.197005,101520.0,101510.0,0.000866]
[1733414838478,0.29668105,101520.0,101510.0,0.000866]
[1733414839220,0.29668105,101520.0,101500.0,0.001867]
[1733414839221,0.278524,101510.0,101500.0,0.001867]
[1733414839457,0.62450005,101510.0,101500.0,0.001867]
[1733414839671,0.197044,101500.0,101490.0,0.0008674]
[1733414839914,0.14597605,101500.0,101490.0,0.0008674]
[1733414840123,0.475564,101510.0,101490.0,0.0008674]
[1733414840124,0.0815,101510.0,101490.0,0.0008674]
[1733414840354,0.18117605,101510.0,101490.0,0.0008674]
[1733414840598,0.37944352,101510.0,101490.0,0.0008674]
[1733414840807,0.18117605,101510.0,101490.0,0.0008674]
[1733414841035,0.18240757,101510.0,101490.0,0.0008674]
[1733414841266,0.440333,101520.0,101490.0,0.1683704]
[1733414841488,0.0463,101520.0,101490.0,0.26716505]
[1733414841739,0.0463,101520.0,101490.0,0.09967605]
[1733414841740,0.243308,101520.0,101490.0,0.09967605]
[1733414841970,0.39627943,101510.0,101490.0,0.009]
[1733414842185,0.00123146,101500.0,101490.0,0.009]
[1733414842433,0.197065,101490.0,101480.0,0.1]
[1733414842606,0.197054,101500.0,101480.0,0.16683165]
[1733414842853,0.394109,101500.0,101480.0,0.16683165]
[1733414843073,0.394068,101510.0,101480.0,0.16683165]
[1733414843308,0.29796436,101500.0,101470.0,0.339]
[1733414843532,0.197074,101490.0,101470.0,0.1]
[1733414843744,0.39415,101490.0,101470.0,0.1]
[1733414843974,0.197074,101490.0,101470.0,0.1]
[1733414844449,0.19831231,101480.0,101460.0,0.17747533]
[1733414844673,0.197083,101480.0,101460.0,0.11064368]
[1733414844893,0.49482805,101490.0,101470.0,0.008]
[1733414845111,0.00122931,101480.0,101470.0,0.008]
[1733414845533,0.19831231,101480.0,101470.0,0.008]
[1733414845774,0.0494,101490.0,101470.0,0.1]
[1733414845981,0.001,101480.0,101470.0,0.11784608]
[1733414846646,0.001,101480.0,101470.0,0.18467773]
[1733414846932,0.001,101480.0,101470.0,0.18566311]
[1733414847885,0.00122931,101500.0,101470.0,0.35320011]
[1733414848344,0.001,101480.0,101470.0,0.36220011]
[1733414848576,0.001,101480.0,101470.0,0.36121473]
[1733414848807,0.001,101480.0,101470.0,0.19367773]
[1733414849019,0.39531931,101500.0,101470.0,0.18566306]
[1733414849231,0.197064,101490.0,101470.0,0.18467773]
[1733414849514,0.00122931,101480.0,101470.0,0.004]
[1733414849735,0.394113,101500.0,101470.0,0.10498549]
[1733414849956,0.49504536,101490.0,101470.0,0.004]
[1733414850176,0.197083,101480.0,101470.0,0.004]
[1733414850372,0.29675905,101480.0,101470.0,0.004]
[1733414850631,0.197102,101470.0,101460.0,0.01064368]
[1733414850877,0.197122,101460.0,101450.0,0.0159156]
[1733414851082,0.49389605,101470.0,101450.0,0.0159156]
[1733414851317,0.49389605,101470.0,101450.0,0.02627765]
[1733414851776,0.00122931,101460.0,101450.0,0.02627765]
[1733414852261,0.19835131,101460.0,101450.0,0.02627765]
[1733414852501,0.001,101460.0,101450.0,0.03527765]
[1733414852729,0.001,101460.0,101450.0,0.13626331]
[1733414852980,0.001,101460.0,101450.0,0.47921235]
[1733414855087,0.19829531,101490.0,101460.0,0.34423965]
[1733414855306,0.439514,101500.0,101470.0,0.27837742]
[1733414855521,0.439514,101500.0,101460.0,0.2665077]
[1733414855522,0.00122931,101490.0,101460.0,0.2665077]
[1733414855735,0.19830131,101490.0,101470.0,0.1]
[1733414855967,0.00122931,101480.0,101460.0,0.16683165]
[1733414856211,0.197112,101470.0,101450.0,0.02627765]
[1733414856419,0.197112,101470.0,101450.0,0.12627765]
[1733414856635,0.001,101460.0,101450.0,0.13527765]
[1733414856865,0.001,101460.0,101450.0,0.12627765]
[1733414858474,0.001,101460.0,101450.0,0.02627765]
[1733414858683,0.394209,101470.0,101440.0,0.17579452]
[1733414858882,0.001,101460.0,101450.0,0.009]
[1733414859545,0.001,101460.0,101440.0,0.45192897]
[1733414859751,0.69096005,101480.0,101440.0,0.62936597]
[1733414859973,0.00222931,101470.0,101440.0,0.46091997]
[1733414860205,0.19933431,101470.0,101440.0,0.28348497]
[1733414860431,0.395216,101470.0,101440.0,0.28348497]
[1733414861102,0.001,101470.0,101440.0,0.46092197]
[1733414861364,0.00222931,101470.0,101460.0,0.177409]
[1733414861591,0.018,101480.0,101470.0,0.177392]
[1733414861806,0.018,101480.0,101470.0,0.27706805]
[1733414862027,0.215084,101480.0,101460.0,0.239]
[1733414862252,0.018,101480.0,101460.0,0.33867605]
[1733414862479,0.215093,101480.0,101460.0,0.239]
[1733414862675,0.215093,101480.0,101460.0,0.248]
[1733414862885,0.001,101470.0,101460.0,0.248]
[1733414863091,0.001,101470.0,101460.0,0.239]
[1733414863307,0.001,101470.0,101460.0,0.52508505]
[1733414864721,0.019,101480.0,101460.0,1.11132894]
[1733414864884,0.019,101480.0,101470.0,0.58988715]
[1733414865142,0.196995,101530.0,101470.0,0.51150994]
[1733414865366,0.197053,101500.0,101470.0,0.09967605]
[1733414865582,0.00122931,101490.0,101460.0,0.239]
[1733414865801,0.19830031,101490.0,101460.0,0.52508505]
[1733414866049,0.197071,101490.0,101460.0,0.70248705]
[1733414866261,0.49378405,101500.0,101460.0,0.70248705]
[1733414866262,0.520572,101510.0,101470.0,0.45542439]
[1733414866481,0.39532831,101500.0,101470.0,0.28704039]
[1733414866714,0.394099,101500.0,101470.0,0.27804539]
[1733414866927,0.39537131,101490.0,101460.0,0.24942999]
[1733414867156,0.394142,101490.0,101460.0,0.11010604]
[1733414867394,0.394138,101490.0,101460.0,0.11109142]
[1733414867604,0.417138,101490.0,101460.0,0.11010604]
[1733414867826,0.023,101490.0,101460.0,0.46589943]
[1733414868040,0.023,101490.0,101470.0,0.17837638]
[1733414868248,0.023,101490.0,101470.0,0.45543543]
[1733414868461,0.023,101490.0,101480.0,0.177374]
[1733414868679,0.023,101490.0,101470.0,0.45444105]
[1733414868915,0.023,101490.0,101470.0,0.27705805]
[1733414869164,0.197084,101480.0,101460.0,0.01042999]
[1733414869409,0.220098,101480.0,101470.0,0.009]
[1733414869637,0.220098,101480.0,101460.0,0.01042999]
[1733414869638,0.220098,101480.0,101460.0,0.00098552]
[1733414869889,0.023,101480.0,101460.0,0.00098552]
[1733414870103,0.023,101480.0,101470.0,0.009]
[1733414870538,0.023,101480.0,101470.0,0.186392]
[1733414870753,0.023,101480.0,101470.0,0.009]
[1733414871405,0.023,101480.0,101460.0,0.63187905]
[1733414871622,0.220064,101490.0,101470.0,0.009]
[1733414872520,0.220064,101490.0,101460.0,0.63187905]
[1733414872986,0.417136,101490.0,101460.0,0.46347705]
[1733414873219,0.220064,101490.0,101460.0,0.10867605]
[1733414873435,0.220064,101490.0,101460.0,0.009]
[1733414873436,0.197102,101470.0,101460.0,0.009]
[1733414873899,0.29677805,101470.0,101460.0,0.009]
[1733414875280,0.29677805,101470.0,101450.0,0.01111519]
[1733414875281,0.197122,101460.0,101450.0,0.01111519]
[1733414877097,0.197122,101460.0,101420.0,0.3978527]
[1733414877356,0.591392,101460.0,101430.0,0.09967605]
[1733414877806,0.394254,101460.0,101450.0,0.009]
[1733414878057,0.49393005,101460.0,101450.0,0.009]
[1733414879413,0.394303,101450.0,101420.0,0.01327914]
[1733414879623,0.19840531,101440.0,101420.0,0.01032478]
[1733414879854,0.19840531,101440.0,101410.0,0.0008678]
[1733414879855,0.19718,101430.0,101410.0,0.0008678]
[1733414880091,0.19842831,101420.0,101410.0,0.0008678]
[1733414880315,0.29687505,101420.0,101410.0,0.0008678]
[1733414880530,0.42367505,101420.0,101410.0,0.0008678]
[1733414881269,0.42367505,101420.0,101410.0,0.0098678]
[1733414881503,0.52159427,101420.0,101410.0,0.0098678]
[1733414881711,0.42367505,101420.0,101410.0,0.0098678]
[1733414881923,0.1262,101440.0,101410.0,0.1883488]
[1733414882162,0.0464,101440.0,101410.0,0.3658328]
[1733414882394,0.24480031,101440.0,101410.0,0.11054385]
[1733414882613,0.440742,101440.0,101410.0,0.11054385]
[1733414883254,0.197182,101430.0,101410.0,0.11152975]
[1733414883466,0.243571,101440.0,101410.0,0.28902575]
[1733414883674,0.440744,101440.0,101410.0,0.10152975]
[1733414883886,0.440744,101440.0,101410.0,0.27902575]
[1733414884130,0.00122931,101430.0,101410.0,0.0078678]
[1733414884357,0.39560331,101430.0,101410.0,0.0008678]
[1733414884576,0.197181,101430.0,101410.0,0.0078678]
[1733414884790,0.19841031,101430.0,101410.0,0.0078678]
[1733414885021,0.243571,101440.0,101410.0,0.0078678]
[1733414885022,0.326536,101460.0,101420.0,0.09967605]
[1733414885306,0.39552231,101450.0,101420.0,0.27812583]
[1733414885524,0.394293,101450.0,101420.0,0.27812583]
[1733414885736,0.62334305,101460.0,101420.0,0.45559183]
[1733414885948,0.00122931,101450.0,101420.0,0.09967605]
[1733414886169,0.09967605,101450.0,101410.0,0.01115578]
[1733414886426,0.197189,101430.0,101410.0,0.01115578]
[1733414886611,0.19713,101460.0,101420.0,0.23256201]
[1733414886862,0.19713,101460.0,101430.0,0.00098573]
[1733414886863,0.49394105,101460.0,101430.0,0.00098573]
[1733414887077,0.00122931,101450.0,101430.0,0.17843873]
[1733414887290,0.19837131,101450.0,101420.0,0.53720905]
[1733414887505,0.49393905,101460.0,101430.0,0.00098575]
[1733414887751,0.19837931,101450.0,101420.0,0.18227605]
[1733414887989,0.19840031,101440.0,101410.0,0.01115578]
[1733414888202,0.197181,101430.0,101410.0,0.01115578]
[1733414888439,0.19842831,101420.0,101410.0,0.01115578]
[1733414888651,0.591514,101440.0,101410.0,0.01115578]
[1733414888864,0.0017384,101450.0,101430.0,0.007]
[1733414889077,0.3960314,101450.0,101430.0,0.007]
[1733414889299,0.49693676,101450.0,101430.0,0.007]
[1733414889509,0.0017384,101450.0,101430.0,0.007]
[1733414889746,0.20011771,101450.0,101430.0,0.007]
[1733414889983,0.19716,101440.0,101430.0,0.007]
[1733414890406,0.394331,101440.0,101410.0,0.18865178]
[1733414890653,0.394331,101440.0,101410.0,0.2983137]
[1733414890867,0.0017384,101450.0,101420.0,0.27813292]
[1733414891100,0.20010871,101450.0,101420.0,0.27812892]
[1733414891323,0.3960324,101450.0,101420.0,0.27812892]
[1733414891990,0.19839931,101440.0,101410.0,0.02015578]
[1733414892232,0.19718,101430.0,101410.0,0.11983183]
[1733414892460,0.197199,101420.0,101410.0,0.02015578]
[1733414892904,0.29687505,101420.0,101410.0,0.0098678]
[1733414893122,0.37876976,101420.0,101410.0,0.0098678]
[1733414894242,0.37876976,101420.0,101410.0,0.0008678]
[1733414894924,0.37876976,101420.0,101410.0,0.0018678]
[1733414895146,0.47876976,101420.0,101410.0,0.0018678]
[1733414895613,0.47876976,101420.0,101410.0,0.0008678]
[1733414896494,0.0795,101410.0,101390.0,0.000867]
[1733414896749,0.297297,101370.0,101360.0,0.0008681]
[1733414896990,0.29697305,101370.0,101360.0,0.0008681]
[1733414897453,0.197297,101370.0,101360.0,0.0008681]
[1733414898580,0.197219,101410.0,101400.0,0.00098607]
[1733414898791,0.197269,101390.0,101370.0,0.08]
[1733414899013,0.197233,101410.0,101380.0,0.10066232]
[1733414899242,0.197213,101420.0,101380.0,0.27820432]
[1733414899479,0.197213,101420.0,101390.0,0.177522]
[1733414899480,0.394424,101420.0,101390.0,0.177522]
[1733414899731,0.394422,101420.0,101400.0,0.10066205]
[1733414899962,0.197229,101410.0,101390.0,0.09967605]
[1733414900184,0.197229,101410.0,101390.0,0.27720605]
[1733414900425,0.197187,101430.0,101400.0,0.17850008]
[1733414900636,0.49405605,101430.0,101400.0,0.17850008]
[1733414900848,0.394378,101430.0,101400.0,0.45567013]
[1733414901087,0.001,101420.0,101400.0,0.45567013]
[1733414901513,0.001,101420.0,101410.0,0.09967605]
[1733414901742,0.001,101420.0,101410.0,0.27815894]
[1733414901964,0.001,101420.0,101410.0,0.27717305]
[1733414902836,0.001,101420.0,101410.0,0.09967605]
[1733414903080,0.001,101420.0,101410.0,0.27815894]
[1733414903268,0.001,101420.0,101410.0,0.27717305]
[1733414903742,0.001,101420.0,101410.0,0.09967605]
[1733414903961,0.19839931,101440.0,101410.0,0.17848089]
[1733414904176,0.006,101420.0,101410.0,0.27816005]
[1733414905280,0.006,101420.0,101410.0,0.28616005]
[1733414905502,0.0017384,101450.0,101420.0,0.177464]
[1733414905715,0.0017384,101450.0,101440.0,0.177444]
[1733414906160,0.0017384,101450.0,101440.0,0.27712005]
[1733414907335,0.0017384,101450.0,101440.0,0.177444]
[1733414907557,0.0017384,101450.0,101430.0,0.354909]
[1733414907795,0.20011171,101450.0,101420.0,0.177465]
[1733414908024,0.29855845,101450.0,101440.0,0.009]
[1733414908270,0.49570945,101450.0,101440.0,0.009]
[1733414908721,0.69286545,101450.0,101420.0,0.177478]
[1733414908946,0.197161,101440.0,101420.0,0.177478]
[1733414909165,0.49570945,101450.0,101420.0,0.354948]
[1733414909394,0.49571245,101450.0,101420.0,0.17747]
[1733414909630,0.197163,101440.0,101420.0,0.18447]
[1733414909855,0.49571245,101450.0,101420.0,0.18447]
[1733414909856,0.49571145,101450.0,101420.0,0.36194]
[1733414910077,0.49571145,101450.0,101420.0,0.53941]
[1733414910295,0.49571145,101450.0,101420.0,0.36194]
[1733414911030,0.49571145,101450.0,101420.0,0.17747]
[1733414911252,0.69286645,101450.0,101420.0,0.363949]
[1733414911486,0.49571145,101450.0,101420.0,0.532428]
[1733414911730,0.0017384,101450.0,101430.0,0.177461]
[1733414911988,0.00296771,101450.0,101430.0,0.354914]
[1733414912212,0.0017384,101450.0,101440.0,0.00098576]
[1733414912434,0.0017384,101450.0,101430.0,0.354906]
[1733414913339,0.1988814,101450.0,101420.0,0.45462005]
[1733414913580,0.0017384,101450.0,101440.0,0.177444]
[1733414913830,0.0017384,101450.0,101440.0,0.27712005]
[1733414914966,0.0017384,101450.0,101440.0,0.28412005]
[1733414915190,0.0017384,101450.0,101440.0,0.27712005]
[1733414915645,0.1988314,101480.0,101450.0,0.177416]
[1733414915646,0.3876628,101480.0,101450.0,0.177416]
[1733414915897,0.3876628,101480.0,101450.0,0.45549054]
[1733414916102,0.3876628,101480.0,101450.0,0.63290754]
[1733414916313,0.3876628,101480.0,101450.0,0.45549054]
[1733414916540,0.6077578,101480.0,101450.0,0.45549054]
[1733414916770,0.4106628,101480.0,101450.0,0.63290754]
[1733414916993,0.4106628,101480.0,101460.0,0.177409]
[1733414917899,0.023,101480.0,101460.0,0.177409]
[1733414918118,0.43258098,101500.0,101470.0,0.17836949]
[1733414918119,0.3258984,101500.0,101470.0,0.17836949]
[1733414918383,0.3258984,101500.0,101470.0,0.177384]
[1733414918384,0.19829531,101490.0,101470.0,0.177384]
[1733414918604,0.394138,101490.0,101460.0,0.45447305]
[1733414918827,0.591215,101490.0,101460.0,0.45447305]
[1733414919052,0.29676905,101480.0,101440.0,0.239]
[1733414919277,0.197115,101470.0,101440.0,0.28726401]
[1733414919500,0.023,101470.0,101450.0,0.177418]
[1733414919721,0.023,101470.0,101450.0,0.35582259]
[1733414919949,0.023,101470.0,101460.0,0.177409]
[1733414920398,0.023,101470.0,101450.0,0.63193005]
[1733414920609,0.023,101470.0,101460.0,0.177409]
[1733414921085,0.023,101470.0,101460.0,0.27807051]
[1733414921313,0.023,101470.0,101460.0,0.27708505]
[1733414921522,0.023,101470.0,101460.0,0.28408505]
[1733414922683,0.023,101470.0,101460.0,0.29308505]
[1733414923324,0.0247336,101470.0,101460.0,0.29308505]
[1733414924452,0.0247336,101470.0,101460.0,0.016]
[1733414924686,0.22306491,101470.0,101460.0,0.016]
[1733414924891,0.2218356,101470.0,101460.0,0.016]
[1733414925567,0.2218356,101470.0,101460.0,0.0353425]
[1733414925568,0.0246463,101470.0,101460.0,0.0353425]
[1733414925789,0.0017336,101470.0,101460.0,0.19439449]
[1733414926011,0.0017336,101470.0,101460.0,0.17839449]
[1733414926238,0.0017336,101470.0,101460.0,0.18139449]
[1733414926465,0.0017336,101470.0,101460.0,0.28107054]
[1733414926677,0.0017336,101470.0,101460.0,0.28008505]
[1733414927850,0.0017336,101470.0,101460.0,0.28308505]
[1733414928075,0.0017336,101470.0,101460.0,0.28008505]
[1733414928504,0.0017336,101470.0,101460.0,0.28908505]
[1733414928729,0.0017336,101470.0,101460.0,0.28608505]
[1733414929208,0.0017336,101470.0,101460.0,0.29508505]
[1733414929416,0.0017336,101470.0,101460.0,0.018]
[1733414929627,0.29851165,101470.0,101460.0,0.018]
[1733414929839,0.42281165,101470.0,101460.0,0.018]
[1733414930337,0.1260336,101470.0,101460.0,0.018]
[1733414930580,0.0017336,101470.0,101460.0,0.018]
[1733414930801,0.1988356,101470.0,101460.0,0.018]
[1733414931033,0.1988356,101470.0,101450.0,0.177416]
[1733414931255,0.1988356,101470.0,101460.0,0.009]
[1733414931979,0.29851165,101470.0,101460.0,0.009]
[1733414932191,0.197141,101450.0,101440.0,0.01014496]
[1733414932640,0.197163,101440.0,101420.0,0.00288555]
[1733414932867,0.394301,101450.0,101420.0,0.2800406]
[1733414933080,0.394297,101450.0,101420.0,0.6349886]
[1733414933297,0.394294,101450.0,101420.0,0.4575096]
[1733414933513,0.591447,101450.0,101420.0,0.4575006]
[1733414933751,0.394294,101450.0,101420.0,0.4575006]
[1733414933962,0.394294,101450.0,101420.0,0.6349716]
[1733414934178,0.591447,101450.0,101420.0,0.4575006]
[1733414934425,0.591451,101450.0,101420.0,0.2800306]
[1733414934638,0.00122931,101440.0,101410.0,0.00931612]
[1733414934868,0.29807536,101440.0,101420.0,0.007]
[1733414935088,0.19719,101430.0,101410.0,0.00931612]
[1733414935305,0.394381,101430.0,101410.0,0.00931612]
[1733414935515,0.394381,101430.0,101420.0,0.003]
[1733414935735,0.197145,101450.0,101420.0,0.10366203]
[1733414935952,0.394295,101450.0,101420.0,0.28014305]
[1733414936164,0.591448,101450.0,101420.0,0.45761405]
[1733414936397,0.39557331,101440.0,101420.0,0.003]
[1733414936626,0.394344,101440.0,101420.0,0.003]
[1733414937281,0.394344,101440.0,101410.0,0.36527601]
[1733414937500,0.394294,101450.0,101420.0,0.27714005]
[1733414937725,0.19718,101430.0,101410.0,0.11599217]
[1733414937957,0.394368,101430.0,101410.0,0.10899217]
[1733414938168,0.394368,101430.0,101410.0,0.10997806]
[1733414938169,0.19718,101430.0,101410.0,0.10997806]
[1733414938879,0.19718,101430.0,101410.0,0.28747506]
[1733414939947,0.394368,101430.0,101410.0,0.10997806]
[1733414940158,0.394368,101430.0,101410.0,0.10899217]
[1733414940379,0.394368,101430.0,101410.0,0.00931612]
[1733414940621,0.29810436,101420.0,101410.0,0.0038668]
[1733414940861,0.29687505,101420.0,101410.0,0.0038668]
[1733414941075,0.29687505,101420.0,101410.0,0.0108668]
[1733414941558,0.29687505,101420.0,101410.0,0.0008668]
[1733414942003,0.29687505,101420.0,101390.0,0.177531]
[1733414942223,0.522385,101430.0,101400.0,0.00098603]
[1733414942450,0.522385,101430.0,101410.0,0.001]
[1733414942451,0.19843931,101420.0,101410.0,0.001]
[1733414942639,0.394421,101420.0,101410.0,0.001]
[1733414943133,0.62205705,101430.0,101410.0,0.001]
[1733414943348,0.1285,101450.0,101410.0,0.001]
[1733414943589,0.49524636,101440.0,101410.0,0.355993]
[1733414943826,0.197169,101440.0,101410.0,0.45466105]
[1733414944040,0.005,101420.0,101410.0,0.10067605]
[1733414944258,0.005,101420.0,101410.0,0.10166195]
[1733414944474,0.394339,101440.0,101410.0,0.27815795]
[1733414944693,0.394339,101440.0,101410.0,0.27915795]
[1733414944908,0.39434,101440.0,101410.0,0.45565495]
[1733414945151,0.22162826,101450.0,101420.0,0.27813295]
[1733414945371,0.202142,101450.0,101420.0,0.45559995]
[1733414945648,0.394272,101460.0,101430.0,0.177462]
[1733414945881,0.19622925,101450.0,101430.0,0.00098579]
[1733414946090,0.39461456,101450.0,101420.0,0.09967605]
[1733414946300,0.39338525,101450.0,101420.0,0.09967605]
[1733414946487,0.29680705,101460.0,101420.0,0.27813984]
[1733414946742,0.29680705,101460.0,101420.0,0.45561084]
[1733414946978,0.29680705,101460.0,101430.0,0.53336079]
[1733414947216,0.197122,101460.0,101430.0,0.45557484]
[1733414947458,0.197122,101460.0,101430.0,0.63302884]
[1733414947681,0.73576543,101470.0,101440.0,0.177443]
[1733414947894,0.19835331,101460.0,101430.0,0.63203105]
[1733414948145,0.197124,101460.0,101430.0,0.63203105]
[1733414948393,0.0017336,101470.0,101450.0,0.354843]
[1733414948607,0.0017336,101470.0,101450.0,0.177416]
[1733414948847,0.0017336,101470.0,101450.0,0.00098554]
[1733414949035,0.0017336,101470.0,101450.0,0.35582654]
[1733414949338,0.0017336,101470.0,101460.0,0.35557046]
[1733414949556,0.0017374,101500.0,101460.0,0.50575939]
[1733414949778,0.0017374,101500.0,101490.0,0.177357]
[1733414949993,0.0017374,101500.0,101490.0,0.1950927]
[1733414950223,0.0017374,101500.0,101490.0,0.19607785]
[1733414950460,0.0017374,101500.0,101490.0,0.4457539]
[1733414950683,0.0017374,101500.0,101490.0,0.44476875]
[1733414950896,0.0017374,101500.0,101490.0,0.15]
[1733414950897,0.1987814,101500.0,101490.0,0.15]
[1733414951153,0.0017374,101500.0,101490.0,0.15]
[1733414951601,0.0017374,101500.0,101490.0,0.14971]
[1733414951809,0.0017374,101500.0,101490.0,0.329067]
[1733414952037,0.0017374,101500.0,101490.0,0.42874305]
[1733414952499,0.0017374,101500.0,101490.0,0.15171]
[1733414952924,0.10264276,101500.0,101490.0,0.15171]
[1733414953138,0.0017374,101500.0,101490.0,0.15171]
[1733414953375,0.00296671,101500.0,101490.0,0.15171]
[1733414953613,0.20001071,101500.0,101490.0,0.15171]
[1733414953822,0.1987814,101500.0,101490.0,0.15171]
[1733414954531,0.197083,101480.0,101470.0,0.15]
[1733414955205,0.29675905,101480.0,101470.0,0.15]
[1733414956317,0.29675905,101480.0,101470.0,0.151]
[1733414957549,0.1987814,101500.0,101470.0,0.32839]
[1733414957772,0.1987814,101500.0,101470.0,0.60544905]
[1733414958012,0.0017374,101500.0,101480.0,0.17835829]
[1733414958235,0.0017374,101500.0,101480.0,0.45539834]
[1733414958891,0.0017374,101500.0,101480.0,0.10066134]
[1733414959128,0.0017374,101500.0,101480.0,0.27803034]
[1733414959351,0.0017374,101500.0,101490.0,0.09967605]
[1733414960007,0.0017374,101500.0,101490.0,0.27703305]
[1733414960447,0.0017374,101500.0,101490.0,0.09967605]
[1733414960658,0.0017374,101500.0,101490.0,0.10066116]
[1733414962714,0.0017374,101500.0,101490.0,0.27801816]
[1733414962948,0.0017374,101500.0,101490.0,0.27703305]
[1733414963188,0.0017374,101500.0,101480.0,0.01931581]
[1733414963428,0.34810647,101490.0,101470.0,0.151]
[1733414963644,0.19831231,101480.0,101470.0,0.151]
[1733414963869,0.197083,101480.0,101470.0,0.151]
[1733414964092,0.44779352,101480.0,101470.0,0.151]
[1733414964576,0.29675905,101480.0,101470.0,0.151]
[1733414965022,0.197083,101480.0,101470.0,0.151]
[1733414965459,0.197083,101480.0,101470.0,0.1670183]
[1733414965682,0.197083,101480.0,101470.0,0.151]
[1733414965896,0.59123,101490.0,101470.0,0.151]
[1733414966123,0.7203114,101500.0,101470.0,0.25067605]
[1733414966343,0.5929064,101500.0,101470.0,0.42806705]
[1733414966560,0.1987904,101500.0,101470.0,0.42806505]
[1733414966781,0.0017374,101500.0,101480.0,0.27802634]
[1733414966998,0.0017374,101500.0,101480.0,0.63276334]
[1733414967226,0.0017374,101500.0,101480.0,0.63275534]
[1733414967457,0.0017374,101500.0,101480.0,0.45539034]
[1733414967665,0.0017374,101500.0,101490.0,0.177357]
[1733414967901,0.0017374,101500.0,101490.0,0.27801814]
[1733414968143,0.0017374,101500.0,101470.0,1.228715]
[1733414968371,0.0017374,101500.0,101480.0,0.2780342]
[1733414969244,0.0017374,101500.0,101480.0,0.1006612]
[1733414969483,0.39707871,101500.0,101470.0,0.873953]
[1733414969704,0.3958494,101500.0,101480.0,0.00098525]
[1733414970150,0.0017374,101500.0,101480.0,0.1006613]
[1733414970371,0.0017374,101500.0,101480.0,0.10066121]
[1733414970589,0.0017374,101500.0,101480.0,0.28788921]
[1733414970816,0.0017374,101500.0,101480.0,0.47510921]
[1733414971269,0.0017374,101500.0,101480.0,0.09967605]
[1733414971270,0.1987814,101500.0,101480.0,0.09967605]